[Event "Irish Championship 2026"]
[Site "Talbot Hotel Stillorgan, Co.Dublin, IE"]
[Date "2026.08.09"]
[Round "9"]
[White "Andrey A. Ivanov"]
[Black "Harding, Tim D"]
[Result "1-0"]
[Board "67"]
[TimeControl "40/5400+30:1800+30"]
[BlackFideId "2500256"]
[WhiteElo "2085"]
[BlackElo "2004"]
[BlackTitle "CM"]
[WhiteClock "1:05:47"]
[BlackClock "0:58:36"]
[Variant "Standard"]
[EndDate "2026.08.09"]
[EndTime "11:20:43"]

1. Nf3 {[%clk 1:30:16]}  d5 {[%clk 1:30:50]} 2. d4 {[%clk 1:30:31]}  Nf6 {[%clk 1:31:13]} 3. c4 {[%clk 1:30:56]}  c6 {[%clk 1:31:22]}
4. Nc3 {[%clk 1:31:07]}  dxc4 {[%clk 1:31:44]} 5. a4 {[%clk 1:31:33]}  e6 {[%clk 1:32:11]} 6. Ne5 {[%clk 1:31:22]}  Nbd7 {[%clk 1:32:32]}
7. Nxc4 {[%clk 1:31:44]}  Bb4 {[%clk 1:32:12]} 8. e3 {[%clk 1:30:23]}  O-O {[%clk 1:32:33]} 9. Bd3 {[%clk 1:30:45]}  c5 {[%clk 1:32:51]}
10. O-O {[%clk 1:30:48]}  cxd4 {[%clk 1:33:02]} 11. exd4 {[%clk 1:31:14]}  b6 {[%clk 1:32:56]} 12. Qf3 {[%clk 1:21:43]}  Ba6 {[%clk 1:31:18]}
13. Nb5 {[%clk 1:21:23]}  Rc8 {[%clk 1:25:17]} 14. Bg5 {[%clk 1:16:57]}  Be7 {[%clk 1:17:06]} 15. b3 {[%clk 1:10:31]}  Nd5 {[%clk 1:01:13]}
16. Bxe7 {[%clk 1:09:15]}  Qxe7 {[%clk 1:01:20]} 17. Nxa7 {[%clk 1:08:48]}  Ra8 {[%clk 1:01:33]} 18. Nc6 {[%clk 1:09:02]}  Qf6 {[%clk 0:59:50]}
19. Be4 {[%clk 1:08:23]}  Bb7 {[%clk 0:58:11]} 20. Bxd5 {[%clk 1:06:29]}  exd5 {[%clk 0:57:43]} 21. Qxf6 {[%clk 1:06:49]}  Nxf6 {[%clk 0:57:56]}
22. Ne7+ {[%clk 1:07:15]}  Kh8 {[%clk 0:58:23]} 23. Nxb6 {[%clk 1:05:34]}  Ra6 {[%clk 0:58:36]} 24. a5 {[%clk 1:05:47]} 1-0

[Event "Irish Championship 2026"]
[Site "Talbot Hotel Stillorgan, Co.Dublin, IE"]
[Date "2026.08.09"]
[Round "9"]
[White "Woods, Yannick"]
[Black "Bartczak, Korneliusz"]
[Result "1-0"]
[Board "68"]
[TimeControl "40/5400+30:1800+30"]
[WhiteFideId "2518384"]
[BlackFideId "2523558"]
[WhiteElo "2118"]
[BlackElo "2062"]
[WhiteClock "0:04:16"]
[BlackClock "0:03:24"]
[Variant "Standard"]
[EndDate "2026.08.09"]
[EndTime "13:29:40"]

1. e4 {[%clk 1:30:57]}  c6 {[%clk 1:27:40]} 2. d4 {[%clk 1:31:18]}  d5 {[%clk 1:28:08]} 3. e5 {[%clk 1:31:43]}  Bf5 {[%clk 1:23:05]}
4. Nf3 {[%clk 1:31:28]}  e6 {[%clk 1:22:59]} 5. Be2 {[%clk 1:31:56]}  Nd7 {[%clk 1:19:38]} 6. O-O {[%clk 1:32:12]}  Ne7 {[%clk 1:19:01]}
7. Nh4 {[%clk 1:10:06]}  Bg6 {[%clk 1:08:16]} 8. Nd2 {[%clk 1:06:59]}  c5 {[%clk 1:05:30]} 9. c3 {[%clk 1:04:09]}  Qb6 {[%clk 0:58:31]}
10. dxc5 {[%clk 1:00:46]}  Qxc5 {[%clk 0:53:44]} 11. Nb3 {[%clk 0:58:14]}  Qc7 {[%clk 0:52:13]} 12. f4 {[%clk 0:58:40]}  Nf5 {[%clk 0:42:24]}
13. Nxf5 {[%clk 0:54:24]}  Bxf5 {[%clk 0:42:24]} 14. Be3 {[%clk 0:53:13]}  a6 {[%clk 0:40:15]} 15. Rc1 {[%clk 0:50:41]}  Bc5 {[%clk 0:32:45]}
16. Nxc5 {[%clk 0:45:16]}  Nxc5 {[%clk 0:33:14]} 17. b4 {[%clk 0:42:04]}  Nd7 {[%clk 0:28:43]} 18. c4 {[%clk 0:42:19]}  dxc4 {[%clk 0:24:15]}
19. Rxc4 {[%clk 0:37:11]}  Qb8 {[%clk 0:24:16]} 20. Qd2 {[%clk 0:20:56]}  g5 {[%clk 0:19:58]} 21. Rd1 {[%clk 0:25:55]}  Nf8 {[%clk 0:18:42]}
22. Bb6 {[%clk 0:25:29]}  Ng6 {[%clk 0:18:26]} 23. Rd4 {[%clk 0:21:36]}  O-O {[%clk 0:18:19]} 24. g3 {[%clk 0:16:53]}  gxf4 {[%clk 0:17:22]}
25. gxf4 {[%clk 0:17:11]}  Qe8 {[%clk 0:17:34]} 26. Bf3 {[%clk 0:11:26]}  Qb5 {[%clk 0:14:23]} 27. Rd6 {[%clk 0:09:25]}  Rac8 {[%clk 0:12:18]}
28. Bc5 {[%clk 0:09:54]}  Rfe8 {[%clk 0:10:46]} 29. Rc1 {[%clk 0:08:16]}  Nh4 {[%clk 0:07:25]} 30. Be2 {[%clk 0:07:25]}  Qa4 {[%clk 0:07:26]}
31. Bd1 {[%clk 0:06:46]}  Rxc5 {[%clk 0:02:59]} 32. Rxc5 {[%clk 0:03:31]}  Qa3 {[%clk 0:03:24]} 33. Rc3 {[%clk 0:03:54]}  Qxb4 {[%clk 0:03:24]}
34. Rg3+ {[%clk 0:04:16]} 1-0

[Event "Irish Championship 2026"]
[Site "Talbot Hotel Stillorgan, Co.Dublin, IE"]
[Date "2026.08.09"]
[Round "9"]
[White "Melaugh, Shane"]
[Black "John P. A. Kennedy"]
[Result "1-0"]
[Board "69"]
[TimeControl "40/5400+30:1800+30"]
[WhiteFideId "2509580"]
[WhiteElo "2157"]
[BlackElo "2012"]
[WhiteTitle "FM"]
[WhiteClock "1:30:54"]
[BlackClock "0:05:31"]
[Variant "Standard"]
[EndDate "2026.08.09"]
[EndTime "13:34:35"]

1. c4 {[%clk 1:30:57]}  c5 {[%clk 1:30:55]} 2. Nc3 {[%clk 1:31:23]}  Nc6 {[%clk 1:31:19]} 3. g3 {[%clk 1:31:45]}  e6 {[%clk 1:31:25]}
4. Bg2 {[%clk 1:32:10]}  Nf6 {[%clk 1:31:41]} 5. Nf3 {[%clk 1:32:30]}  d5 {[%clk 1:32:02]} 6. cxd5 {[%clk 1:32:56]}  exd5 {[%clk 1:32:27]}
7. d4 {[%clk 1:33:23]}  Be7 {[%clk 1:32:43]} 8. O-O {[%clk 1:33:46]}  O-O {[%clk 1:33:09]} 9. b3 {[%clk 1:32:52]}  cxd4 {[%clk 1:32:37]}
10. Nxd4 {[%clk 1:33:17]}  Be6 {[%clk 1:32:55]} 11. Bb2 {[%clk 1:33:39]}  Qd7 {[%clk 1:33:00]} 12. Re1 {[%clk 1:29:34]}  Rad8 {[%clk 1:29:47]}
13. e3 {[%clk 1:29:39]}  Rfe8 {[%clk 1:28:52]} 14. a3 {[%clk 1:29:12]}  Bf8 {[%clk 1:28:38]} 15. Nce2 {[%clk 1:29:15]}  Bg4 {[%clk 1:21:34]}
16. Rc1 {[%clk 1:29:41]}  Ne5 {[%clk 1:16:50]} 17. Qc2 {[%clk 1:23:26]}  Rc8 {[%clk 1:13:09]} 18. Qb1 {[%clk 1:23:51]}  Ne4 {[%clk 1:11:39]}
19. Rxc8 {[%clk 1:23:26]}  Qxc8 {[%clk 1:08:49]} 20. Rc1 {[%clk 1:18:46]}  Qd7 {[%clk 1:07:16]} 21. Qc2 {[%clk 1:16:56]}  Ng5 {[%clk 0:41:18]}
22. Nf4 {[%clk 1:11:08]}  Nef3+ {[%clk 0:28:55]} 23. Nxf3 {[%clk 1:08:06]}  Nxf3+ {[%clk 0:24:09]} 24. Kh1 {[%clk 1:08:32]}  Qd6 {[%clk 0:19:38]}
25. h3 {[%clk 1:06:22]}  Qh6 {[%clk 0:19:44]} 26. Qd1 {[%clk 1:06:39]}  Ne5 {[%clk 0:14:17]} 27. Qxd5 {[%clk 1:07:01]}  Nc6 {[%clk 0:14:01]}
28. Kg1 {[%clk 1:06:50]}  Be6 {[%clk 0:11:07]} 29. Nxe6 {[%clk 1:07:13]}  Rxe6 {[%clk 0:10:28]} 30. Qb5 {[%clk 1:06:16]}  Ne7 {[%clk 0:08:14]}
31. Bd4 {[%clk 1:02:23]}  Nc6 {[%clk 0:07:10]} 32. Bxc6 {[%clk 0:58:42]}  Rxc6 {[%clk 0:05:10]} 33. Rxc6 {[%clk 0:59:07]}  Qxc6 {[%clk 0:03:08]}
34. Qxc6 {[%clk 0:59:33]}  bxc6 {[%clk 0:03:32]} 35. b4 {[%clk 0:59:37]}  a6 {[%clk 0:03:44]} 36. Kf1 {[%clk 1:00:02]}  f6 {[%clk 0:03:10]}
37. Ke2 {[%clk 1:00:28]}  Kf7 {[%clk 0:03:33]} 38. Kd3 {[%clk 1:00:53]}  Ke6 {[%clk 0:03:49]} 39. Kc4 {[%clk 1:01:20]}  Bd6 {[%clk 0:02:44]}
40. Bc5 {[%clk 1:01:45]}  Be5 {[%clk 0:02:08]} 41. f4 {[%clk 0:59:39]}  Bc7 {[%clk 0:01:00]} 42. Bf8 {[%clk 0:59:48]}  Kf7 {[%clk 0:28:29]}
43. Bxg7 {[%clk 1:28:23]}  Kxg7 {[%clk 0:26:16]} 44. Kc5 {[%clk 1:28:02]}  a5 {[%clk 0:25:39]} 45. Kxc6 {[%clk 1:28:21]}  axb4 {[%clk 0:25:56]}
46. axb4 {[%clk 1:28:47]}  Bb8 {[%clk 0:23:29]} 47. b5 {[%clk 1:28:27]}  Kf7 {[%clk 0:22:59]} 48. b6 {[%clk 1:28:16]}  f5 {[%clk 0:09:39]}
49. Kd7 {[%clk 1:27:57]}  h5 {[%clk 0:08:40]} 50. b7 {[%clk 1:26:04]}  Ba7 {[%clk 0:08:02]} 51. Kc8 {[%clk 1:25:47]}  Ke6 {[%clk 0:08:17]}
52. b8=Q {[%clk 1:26:11]}  Bxb8 {[%clk 0:08:43]} 53. Kxb8 {[%clk 1:26:36]}  Kd6 {[%clk 0:05:34]} 54. Kb7 {[%clk 1:27:00]}  Kd5 {[%clk 0:04:46]}
55. Kc7 {[%clk 1:27:24]}  Ke4 {[%clk 0:04:59]} 56. Kd6 {[%clk 1:27:49]}  Kf3 {[%clk 0:03:58]} 57. Ke5 {[%clk 1:28:13]}  Kxg3 {[%clk 0:04:23]}
58. Kxf5 {[%clk 1:28:38]}  h4 {[%clk 0:04:10]} 59. Kg5 {[%clk 1:28:46]}  Kxh3 {[%clk 0:04:31]} 60. f5 {[%clk 1:29:12]}  Kg3 {[%clk 0:04:41]}
61. f6 {[%clk 1:29:36]}  h3 {[%clk 0:05:06]} 62. f7 {[%clk 1:30:02]}  h2 {[%clk 0:05:33]} 63. f8=Q {[%clk 1:29:50]}  h1=Q {[%clk 0:05:31]}
64. Qf4+ {[%clk 1:30:54]} 1-0

[Event "Irish Championship 2026"]
[Site "Talbot Hotel Stillorgan, Co.Dublin, IE"]
[Date "2026.08.09"]
[Round "9"]
[White "Hughes, Padraig"]
[Black "Landmark, Gabriel"]
[Result "0-1"]
[Board "70"]
[TimeControl "40/5400+30:1800+30"]
[WhiteFideId "2505690"]
[BlackFideId "2524848"]
[WhiteElo "2022"]
[BlackElo "1999"]
[WhiteClock "0:10:29"]
[BlackClock "0:44:40"]
[Variant "Standard"]

1. Nf3 {[%clk 1:22:01]}  Nf6 {[%clk 1:30:47]} 2. g3 {[%clk 1:22:13]}  e6 {[%clk 1:30:26]} 3. Bg2 {[%clk 1:22:36]}  d5 {[%clk 1:30:46]}
4. O-O {[%clk 1:22:58]}  Be7 {[%clk 1:30:03]} 5. c4 {[%clk 1:23:19]}  O-O {[%clk 1:30:09]} 6. b3 {[%clk 1:20:01]}  d4 {[%clk 1:28:57]}
7. Bb2 {[%clk 1:19:10]}  c5 {[%clk 1:29:14]} 8. e3 {[%clk 1:19:33]}  Nc6 {[%clk 1:29:38]} 9. exd4 {[%clk 1:19:58]}  cxd4 {[%clk 1:30:01]}
10. d3 {[%clk 1:19:05]}  e5 {[%clk 1:27:36]} 11. Re1 {[%clk 1:18:45]}  Nd7 {[%clk 1:27:49]} 12. Ba3 {[%clk 1:13:07]}  Bxa3 {[%clk 1:23:27]}
13. Nxa3 {[%clk 1:13:35]}  Re8 {[%clk 1:22:13]} 14. Nc2 {[%clk 1:13:07]}  a5 {[%clk 1:22:14]} 15. a3 {[%clk 1:09:18]}  Nc5 {[%clk 1:16:40]}
16. Rb1 {[%clk 1:02:51]}  Bf5 {[%clk 1:13:59]} 17. Bf1 {[%clk 1:02:59]}  e4 {[%clk 1:03:25]} 18. Nh4 {[%clk 0:59:10]}  Qd7 {[%clk 0:53:44]}
19. dxe4 {[%clk 0:55:03]}  Nxe4 {[%clk 0:51:18]} 20. Qd3 {[%clk 0:36:41]}  Nxg3 {[%clk 0:49:16]} 21. Nxf5 {[%clk 0:36:57]}  Nxf5 {[%clk 0:48:48]}
22. Bh3 {[%clk 0:37:05]}  g6 {[%clk 0:48:34]} 23. Rxe8+ {[%clk 0:27:24]}  Rxe8 {[%clk 0:48:12]} 24. Ne3 {[%clk 0:27:14]}  Ne5 {[%clk 0:46:59]}
25. Ng4 {[%clk 0:26:08]}  Nxd3 {[%clk 0:42:18]} 26. Nf6+ {[%clk 0:24:40]}  Kg7 {[%clk 0:42:20]} 27. Nxd7 {[%clk 0:25:05]}  Nh4 {[%clk 0:41:53]}
28. Bg2 {[%clk 0:16:22]}  Re7 {[%clk 0:39:49]} 29. Nb6 {[%clk 0:13:28]}  Nxg2 {[%clk 0:33:39]} 30. Kxg2 {[%clk 0:13:46]}  Re2 {[%clk 0:32:25]}
31. Rd1 {[%clk 0:08:07]}  Nxf2 {[%clk 0:26:16]} 32. Rxd4 {[%clk 0:08:26]}  Ra2 {[%clk 0:19:56]} 33. Kf3 {[%clk 0:07:29]}  Nh3 {[%clk 0:18:59]}
34. a4 {[%clk 0:05:50]}  Ng5+ {[%clk 0:18:54]} 35. Kg3 {[%clk 0:04:25]}  Rb2 {[%clk 0:18:37]} 36. Rd3 {[%clk 0:02:30]}  Ne4+ {[%clk 0:18:57]}
37. Kf4 {[%clk 0:02:56]}  Nc5 {[%clk 0:18:32]} 38. Rd5 {[%clk 0:01:47]}  Ne6+ {[%clk 0:18:56]} 39. Ke5 {[%clk 0:01:41]}  Rxb3 {[%clk 0:19:13]}
40. Nd7 {[%clk 0:00:56]}  Rb4 {[%clk 0:15:58]} 41. Rxa5 {[%clk 0:22:55]}  Rxc4 {[%clk 0:46:06]} 42. Ra7 {[%clk 0:22:58]}  Rb4 {[%clk 0:45:30]}
43. a5 {[%clk 0:20:52]}  Rb2 {[%clk 0:45:43]} 44. Nb6 {[%clk 0:18:05]}  Rxh2 {[%clk 0:45:33]} 45. Nc4 {[%clk 0:18:05]}  Rh5+ {[%clk 0:45:22]}
46. Kd6 {[%clk 0:18:22]}  Rc5 {[%clk 0:44:39]} 47. Ne5 {[%clk 0:15:16]}  Rb5 {[%clk 0:44:57]} 48. a6 {[%clk 0:09:55]}  Rb6+ {[%clk 0:45:02]}
49. Ke7 {[%clk 0:10:21]}  Rxa6 {[%clk 0:44:20]} 50. Rxb7 {[%clk 0:10:29]}  Nc5 {[%clk 0:44:40]} 0-1

[Event "Irish Championship 2026"]
[Site "Talbot Hotel Stillorgan, Co.Dublin, IE"]
[Date "2026.08.09"]
[Round "9"]
[White "O'Connell, Gerard"]
[Black "Conor O'reilly"]
[Result "1-0"]
[Board "71"]
[TimeControl "40/5400+30:1800+30"]
[WhiteFideId "2500493"]
[WhiteElo "1996"]
[BlackElo "2019"]
[WhiteClock "0:07:46"]
[BlackClock "0:14:08"]
[Variant "Standard"]
[EndDate "2026.08.09"]
[EndTime "13:41:21"]

1. d4 {[%clk 1:30:53]}  Nf6 {[%clk 1:30:55]} 2. Nf3 {[%clk 1:31:11]}  e6 {[%clk 1:31:21]} 3. c4 {[%clk 1:31:25]}  d5 {[%clk 1:31:46]}
4. g3 {[%clk 1:31:45]}  dxc4 {[%clk 1:32:11]} 5. Bg2 {[%clk 1:32:02]}  a6 {[%clk 1:32:37]} 6. O-O {[%clk 1:30:05]}  Nc6 {[%clk 1:32:57]}
7. Nc3 {[%clk 1:26:53]}  Rb8 {[%clk 1:33:09]} 8. e4 {[%clk 1:27:05]}  b5 {[%clk 1:31:40]} 9. d5 {[%clk 1:27:15]}  Nb4 {[%clk 1:25:20]}
10. b3 {[%clk 1:22:36]}  exd5 {[%clk 1:17:07]} 11. exd5 {[%clk 1:21:51]}  cxb3 {[%clk 1:05:16]} 12. Qxb3 {[%clk 1:18:25]}  c5 {[%clk 0:42:04]}
13. dxc6 {[%clk 1:10:44]}  Be6 {[%clk 0:42:00]} 14. Re1 {[%clk 1:03:03]}  Be7 {[%clk 0:39:40]} 15. Rxe6 {[%clk 1:01:01]}  fxe6 {[%clk 0:37:46]}
16. Bf4 {[%clk 0:56:54]}  Rc8 {[%clk 0:36:45]} 17. Ng5 {[%clk 0:49:46]}  O-O {[%clk 0:24:38]} 18. Nxe6 {[%clk 0:41:20]}  Qd3 {[%clk 0:22:41]}
19. Nxf8+ {[%clk 0:40:40]}  Kxf8 {[%clk 0:23:09]} 20. Qe6 {[%clk 0:30:10]}  Re8 {[%clk 0:20:20]} 21. Ne4 {[%clk 0:22:50]}  Qd5 {[%clk 0:17:53]}
22. Ng5 {[%clk 0:14:16]}  Qxe6 {[%clk 0:17:45]} 23. Nxe6+ {[%clk 0:14:38]}  Kf7 {[%clk 0:18:09]} 24. Ng5+ {[%clk 0:14:39]}  Kf8 {[%clk 0:16:15]}
25. c7 {[%clk 0:14:37]}  Nbd5 {[%clk 0:15:08]} 26. Bh3 {[%clk 0:14:21]}  Nb6 {[%clk 0:15:10]} 27. Rc1 {[%clk 0:13:24]}  Nc8 {[%clk 0:13:57]}
28. Ne6+ {[%clk 0:13:44]}  Kf7 {[%clk 0:14:00]} 29. Nd8+ {[%clk 0:13:56]}  Bxd8 {[%clk 0:14:18]} 30. cxd8=Q {[%clk 0:14:16]}  Rxd8 {[%clk 0:14:39]}
31. Bxc8 {[%clk 0:14:33]}  a5 {[%clk 0:14:17]} 32. Bf5 {[%clk 0:13:53]}  Nd5 {[%clk 0:14:14]} 33. Bc7 {[%clk 0:13:15]}  Nxc7 {[%clk 0:14:15]}
34. Rxc7+ {[%clk 0:13:36]}  Kf6 {[%clk 0:14:33]} 35. Bd7 {[%clk 0:13:20]}  b4 {[%clk 0:14:40]} 36. Ra7 {[%clk 0:12:19]}  h6 {[%clk 0:14:44]}
37. Ra6+ {[%clk 0:12:10]}  Ke7 {[%clk 0:14:58]} 38. Bb5 {[%clk 0:11:32]}  Rd1+ {[%clk 0:15:02]} 39. Kg2 {[%clk 0:11:56]}  Ra1 {[%clk 0:15:20]}
40. Bc4 {[%clk 0:10:58]}  Rc1 {[%clk 0:15:43]} 41. Bb3 {[%clk 0:11:16]}  Rc5 {[%clk 0:16:06]} 42. Re6+ {[%clk 0:11:06]}  Kf8 {[%clk 0:16:10]}
43. Rd6 {[%clk 0:11:13]}  Rc7 {[%clk 0:15:01]} 44. Rd5 {[%clk 0:08:57]}  Ra7 {[%clk 0:15:28]} 45. Ba4 {[%clk 0:09:16]}  Ke7 {[%clk 0:15:41]}
46. h4 {[%clk 0:09:31]}  Ke6 {[%clk 0:16:00]} 47. Rb5 {[%clk 0:09:47]}  Kf6 {[%clk 0:15:51]} 48. h5 {[%clk 0:09:58]}  Ke7 {[%clk 0:16:10]}
49. g4 {[%clk 0:10:17]}  Kf6 {[%clk 0:16:26]} 50. f4 {[%clk 0:10:41]}  Ke7 {[%clk 0:15:54]} 51. Kg3 {[%clk 0:11:04]}  Kf6 {[%clk 0:15:20]}
52. Kh4 {[%clk 0:10:46]}  Kf7 {[%clk 0:15:07]} 53. g5 {[%clk 0:11:09]}  hxg5+ {[%clk 0:14:29]} 54. Kxg5 {[%clk 0:11:32]}  Kg8 {[%clk 0:14:11]}
55. Rd5 {[%clk 0:10:17]}  Ra8 {[%clk 0:13:53]} 56. Rd6 {[%clk 0:09:24]}  Kh7 {[%clk 0:13:35]} 57. Bc2+ {[%clk 0:08:35]}  Kg8 {[%clk 0:13:56]}
58. Kg6 {[%clk 0:08:48]}  Rf8 {[%clk 0:13:45]} 59. Re6 {[%clk 0:07:34]}  Ra8 {[%clk 0:13:58]} 60. Ba4 {[%clk 0:07:34]}  Kh8 {[%clk 0:14:08]}
61. Re8+ {[%clk 0:07:46]} 1-0

[Event "Irish Championship 2026"]
[Site "Talbot Hotel Stillorgan, Co.Dublin, IE"]
[Date "2026.08.09"]
[Round "9"]
[White "Field, Lila Quinn"]
[Black "Hayes, Peter J."]
[Result "1/2-1/2"]
[Board "72"]
[TimeControl "40/5400+30:1800+30"]
[WhiteFideId "30941334"]
[BlackFideId "2502569"]
[WhiteElo "1898"]
[BlackElo "2073"]
[WhiteClock "0:02:42"]
[BlackClock "0:21:30"]
[Variant "Standard"]
[EndDate "2026.08.09"]
[EndTime "14:37:22"]

1. d4 {[%clk 1:30:57]}  f5 {[%clk 1:29:55]} 2. Bg5 {[%clk 1:31:15]}  g6 {[%clk 1:30:19]} 3. Nc3 {[%clk 1:30:53]}  d5 {[%clk 1:30:38]}
4. Nf3 {[%clk 1:28:48]}  Bg7 {[%clk 1:30:27]} 5. h4 {[%clk 1:26:41]}  c6 {[%clk 1:27:47]} 6. e3 {[%clk 1:16:32]}  Be6 {[%clk 1:27:44]}
7. Be2 {[%clk 1:08:13]}  Nd7 {[%clk 1:27:08]} 8. Qd2 {[%clk 1:02:26]}  Ngf6 {[%clk 1:24:58]} 9. Bxf6 {[%clk 0:59:32]}  Nxf6 {[%clk 1:21:09]}
10. h5 {[%clk 0:55:42]}  Qc7 {[%clk 1:18:39]} 11. hxg6 {[%clk 0:52:05]}  hxg6 {[%clk 1:18:56]} 12. Rxh8+ {[%clk 0:52:22]}  Bxh8 {[%clk 1:19:21]}
13. Ne5 {[%clk 0:50:39]}  g5 {[%clk 1:14:23]} 14. O-O-O {[%clk 0:47:33]}  O-O-O {[%clk 1:07:22]} 15. f3 {[%clk 0:46:14]}  Nd7 {[%clk 1:06:31]}
16. Nxd7 {[%clk 0:45:43]}  Bxd7 {[%clk 1:05:42]} 17. Na4 {[%clk 0:39:38]}  b6 {[%clk 1:03:38]} 18. Qb4 {[%clk 0:35:05]}  e5 {[%clk 1:03:18]}
19. Ba6+ {[%clk 0:28:46]}  Kb8 {[%clk 1:03:42]} 20. Nc5 {[%clk 0:24:51]}  exd4 {[%clk 0:52:45]} 21. Nxd7+ {[%clk 0:22:18]}  Qxd7 {[%clk 0:45:42]}
22. exd4 {[%clk 0:21:11]}  Re8 {[%clk 0:43:34]} 23. Bd3 {[%clk 0:18:18]}  Qe6 {[%clk 0:41:16]} 24. c3 {[%clk 0:16:21]}  Bf6 {[%clk 0:39:33]}
25. Qa4 {[%clk 0:12:12]}  g4 {[%clk 0:38:20]} 26. fxg4 {[%clk 0:09:22]}  fxg4 {[%clk 0:31:25]} 27. Kb1 {[%clk 0:07:54]}  Bg5 {[%clk 0:26:54]}
28. Rf1 {[%clk 0:07:04]}  Qe3 {[%clk 0:25:23]} 29. Qd1 {[%clk 0:06:29]}  Qg3 {[%clk 0:13:18]} 30. Be2 {[%clk 0:05:13]}  Re4 {[%clk 0:13:44]}
31. Rf8+ {[%clk 0:02:10]}  Kb7 {[%clk 0:10:29]} 32. Rg8 {[%clk 0:01:26]}  Qxg2 {[%clk 0:10:15]} 33. Bd3 {[%clk 0:01:30]}  Bh4 {[%clk 0:04:35]}
34. Bxe4 {[%clk 0:01:56]}  Qxe4+ {[%clk 0:05:01]} 35. Ka1 {[%clk 0:02:10]}  Qf3 {[%clk 0:03:24]} 36. Qxf3 {[%clk 0:02:19]}  gxf3 {[%clk 0:03:50]}
37. Rg7+ {[%clk 0:02:03]}  Ka6 {[%clk 0:04:02]} 38. Rf7 {[%clk 0:02:13]}  f2 {[%clk 0:04:20]} 39. Kb1 {[%clk 0:02:35]}  c5 {[%clk 0:04:14]}
40. dxc5 {[%clk 0:02:38]}  bxc5 {[%clk 0:04:39]} 41. Kc2 {[%clk 0:01:29]}  Kb5 {[%clk 0:02:53]} 42. Kd3 {[%clk 0:01:15]}  a5 {[%clk 0:03:10]}
43. Ke2 {[%clk 0:01:14]}  d4 {[%clk 0:02:40]} 44. cxd4 {[%clk 0:30:18]}  cxd4 {[%clk 0:33:02]} 45. Rf4 {[%clk 0:30:22]}  Be7 {[%clk 0:31:32]}
46. Rxd4 {[%clk 0:28:31]}  Bc5 {[%clk 0:31:46]} 47. Rf4 {[%clk 0:26:31]}  Kc6 {[%clk 0:24:23]} 48. Rxf2 {[%clk 0:20:42]}  Bxf2 {[%clk 0:23:46]}
49. Kxf2 {[%clk 0:21:09]}  Kc5 {[%clk 0:22:04]} 50. Ke3 {[%clk 0:21:26]}  Kc4 {[%clk 0:22:01]} 51. Kd2 {[%clk 0:18:16]}  a4 {[%clk 0:19:51]}
52. Kc2 {[%clk 0:11:02]}  Kd4 {[%clk 0:20:09]} 53. a3 {[%clk 0:09:02]}  Kc4 {[%clk 0:20:21]} 54. Kb1 {[%clk 0:07:20]}  Kb5 {[%clk 0:19:28]}
55. Kc1 {[%clk 0:07:27]}  Kc5 {[%clk 0:19:54]} 56. Kd1 {[%clk 0:04:15]}  Kd5 {[%clk 0:20:17]} 57. Ke1 {[%clk 0:03:09]}  Ke5 {[%clk 0:20:17]}
58. Kd1 {[%clk 0:02:45]}  Kd5 {[%clk 0:20:41]} 59. Kc1 {[%clk 0:02:44]}  Kc5 {[%clk 0:21:06]} 60. Kb1 {[%clk 0:02:42]}  Kd4 {[%clk 0:21:30]} 1/2-1/2

[Event "Irish Championship 2026"]
[Site "Talbot Hotel Stillorgan, Co.Dublin, IE"]
[Date "2026.08.09"]
[Round "9"]
[White "Freeman, Gordon"]
[Black "Moull, Arthur"]
[Result "0-1"]
[Board "73"]
[TimeControl "40/5400+30:1800+30"]
[WhiteFideId "2501309"]
[BlackFideId "2517426"]
[WhiteElo "2068"]
[BlackElo "1876"]
[WhiteTitle "FM"]
[WhiteClock "0:00:36"]
[BlackClock "0:54:03"]
[Variant "Standard"]
[EndDate "2026.08.09"]
[EndTime "12:36:06"]

1. d4 {[%clk 1:15:50]}  d5 {[%clk 1:30:30]} 2. Nf3 {[%clk 1:16:12]}  Nf6 {[%clk 1:30:57]} 3. Bg5 {[%clk 1:16:36]}  Ne4 {[%clk 1:31:24]}
4. Bf4 {[%clk 1:16:59]}  c5 {[%clk 1:31:50]} 5. e3 {[%clk 1:17:26]}  Qb6 {[%clk 1:32:07]} 6. Nc3 {[%clk 1:17:50]}  Qa5 {[%clk 1:32:31]}
7. Bb5+ {[%clk 1:18:12]}  Bd7 {[%clk 1:32:57]} 8. Bxd7+ {[%clk 1:18:29]}  Nxd7 {[%clk 1:33:25]} 9. O-O {[%clk 1:18:42]}  Nxc3 {[%clk 1:33:46]}
10. bxc3 {[%clk 1:19:08]}  Rc8 {[%clk 1:34:09]} 11. Qb1 {[%clk 1:12:14]}  b6 {[%clk 1:31:54]} 12. a4 {[%clk 1:07:06]}  a6 {[%clk 1:24:21]}
13. Qb2 {[%clk 0:42:20]}  e6 {[%clk 1:23:39]} 14. Rfb1 {[%clk 0:41:39]}  Be7 {[%clk 1:22:52]} 15. Ne5 {[%clk 0:32:40]}  Nxe5 {[%clk 1:21:54]}
16. Bxe5 {[%clk 0:32:13]}  f6 {[%clk 1:22:05]} 17. Bg3 {[%clk 0:30:14]}  Rc6 {[%clk 1:20:53]} 18. f3 {[%clk 0:27:53]}  cxd4 {[%clk 1:18:54]}
19. cxd4 {[%clk 0:27:53]}  Qd2 {[%clk 1:18:54]} 20. Qc1 {[%clk 0:22:21]}  Bb4 {[%clk 1:13:17]} 21. Qf1 {[%clk 0:11:20]}  a5 {[%clk 1:01:16]}
22. c3 {[%clk 0:08:13]}  Bxc3 {[%clk 0:57:03]} 23. Qb5 {[%clk 0:07:56]}  Kd7 {[%clk 0:57:28]} 24. Be1 {[%clk 0:04:57]}  Qxe3+ {[%clk 0:56:34]}
25. Bf2 {[%clk 0:05:04]}  Qd2 {[%clk 0:55:58]} 26. Ra3 {[%clk 0:01:12]}  Rhc8 {[%clk 0:55:17]} 27. Kh1 {[%clk 0:00:59]}  Bxd4 {[%clk 0:54:29]}
28. Bg3 {[%clk 0:00:40]}  Ke7 {[%clk 0:54:04]} 29. Be1 {[%clk 0:00:36]}  Rc1 {[%clk 0:54:03]} 0-1

[Event "Irish Championship 2026"]
[Site "Talbot Hotel Stillorgan, Co.Dublin, IE"]
[Date "2026.08.09"]
[Round "9"]
[White "Paibir, Atharva"]
[Black "Healy, John"]
[Result "1-0"]
[Board "74"]
[TimeControl "40/5400+30:1800+30"]
[WhiteFideId "2512882"]
[BlackFideId "2500965"]
[WhiteElo "2067"]
[BlackElo "1928"]
[WhiteClock "0:10:13"]
[BlackClock "0:38:57"]
[Variant "Standard"]
[EndDate "2026.08.09"]
[EndTime "12:44:28"]

1. e4 {[%clk 1:30:25]}  c5 {[%clk 1:30:33]} 2. Nf3 {[%clk 1:30:49]}  Nc6 {[%clk 1:30:47]} 3. Bb5 {[%clk 1:31:09]}  e6 {[%clk 1:30:46]}
4. Bxc6 {[%clk 1:31:31]}  dxc6 {[%clk 1:30:49]} 5. d3 {[%clk 1:31:30]}  Qc7 {[%clk 1:29:33]} 6. e5 {[%clk 1:30:26]}  Ne7 {[%clk 1:27:49]}
7. O-O {[%clk 1:30:02]}  Nf5 {[%clk 1:26:19]} 8. Nbd2 {[%clk 1:29:19]}  b6 {[%clk 1:25:23]} 9. a4 {[%clk 1:29:40]}  Be7 {[%clk 1:24:42]}
10. Nc4 {[%clk 1:28:41]}  h5 {[%clk 1:23:18]} 11. Re1 {[%clk 1:22:29]}  Ba6 {[%clk 1:18:09]} 12. a5 {[%clk 1:19:02]}  b5 {[%clk 1:18:18]}
13. Ncd2 {[%clk 1:19:09]}  O-O-O {[%clk 1:08:32]} 14. Qe2 {[%clk 1:10:44]}  Nd4 {[%clk 1:00:29]} 15. Nxd4 {[%clk 1:11:02]}  cxd4 {[%clk 1:00:53]}
16. Nf3 {[%clk 1:10:54]}  Bb4 {[%clk 1:00:03]} 17. Bd2 {[%clk 1:08:00]}  Be7 {[%clk 0:58:53]} 18. b4 {[%clk 0:52:20]}  Rd5 {[%clk 0:56:54]}
19. Rab1 {[%clk 0:44:34]}  Qd8 {[%clk 0:46:05]} 20. Rec1 {[%clk 0:42:46]}  Bb7 {[%clk 0:43:50]} 21. c4 {[%clk 0:33:45]}  dxc3 {[%clk 0:44:14]}
22. Rxc3 {[%clk 0:33:29]}  a6 {[%clk 0:44:39]} 23. Be3 {[%clk 0:29:04]}  g5 {[%clk 0:43:22]} 24. Bb6 {[%clk 0:26:52]}  Qf8 {[%clk 0:43:13]}
25. Rbc1 {[%clk 0:21:36]}  Kd7 {[%clk 0:41:48]} 26. Qc2 {[%clk 0:17:06]}  Qc8 {[%clk 0:38:39]} 27. Bc5 {[%clk 0:09:49]}  Bxc5 {[%clk 0:38:21]}
28. Rxc5 {[%clk 0:10:14]}  g4 {[%clk 0:38:23]} 29. Ng5 {[%clk 0:09:41]}  Rxc5 {[%clk 0:38:41]} 30. Qxc5 {[%clk 0:09:57]}  Rf8 {[%clk 0:38:36]}
31. Qd6+ {[%clk 0:09:54]}  Ke8 {[%clk 0:38:57]} 32. Nh7 {[%clk 0:10:13]} 1-0